Cogmind - Beta 13 @@@ ROGUE MODE // 2024.07.08 @ 20:24:28 Player: AntiGoose Result: Destroyed by D-53 Grenadier with Mini Grenade Launcher Performance ------------- Evolutions (0) 0 Regions Visited (2) 400 Robots Destroyed (13) 65 Value Destroyed (364) 364 Prototype IDs (0) 0 Alien Tech Used (0) 0 Bonus (0) 0 TOTAL SCORE: 829 Bonus ------- None Cogmind --------- Core Integrity 0/250 Matter 106/300 Energy 100/100 System Corruption 0% Temperature Cool (33) Movement Treading (320) Ox2 Location -10/Mines Parts ------- > --- POWER (1) -------- (None) > --- PROPULSION (2) --- Light Treads > --- UTILITY (2) ------ High-capacity Storage Unit Seismic Detector > --- WEAPON (2) ------- Beam Cannon Light Cannon > --- INVENTORY (20) --- Ion Engine High-capacity Battery (250) Large Matter Pod (0) Structural Scanner Salvage Targeting Computer Targeting Computer Light Armor Plating Heavy EM Pulse Gun Assault Rifle Mining Laser Peak State ------------ > --- POWER ------------ Ion Engine > --- PROPULSION ------- Light Treads Light Treads > --- UTILITY ---------- High-capacity Storage Unit Seismic Detector > --- WEAPON ----------- Autogun Grenade Launcher > --- INVENTORY -------- Ion Engine High-capacity Battery Salvage Targeting Computer Targeting Computer Light Armor Plating Heavy EM Pulse Gun Assault Rifle Autogun Light Cannon Mining Laser [Rating: 9] Favorites ----------- Power Ion Engine Engine Ion Engine Propulsion Light Treads Treads Light Treads Utility High-capacity Storage Unit Device Seismic Detector Storage High-capacity Storage Unit Weapon Grenade Launcher Energy Gun Heavy EM Pulse Gun Energy Cannon Beam Cannon Ballistic Gun Assault Rifle Ballistic Cannon Light Cannon Launcher Grenade Launcher Special Weapon Mining Laser Build | -11 -10 -10 ------- Run | Yrd Mat Min Slots Evolved . | . . . Power . | . . . Propulsion . | . . . Utility . | . . . Weapon . | . . . Parts Attached 17 | 7 7 3 Power 1 | 1 . . Engine 1 | 1 . . Core . | . . . Reactor . | . . . Propulsion 3 | 2 1 . Treads 3 | 2 1 . Leg . | . . . Wheel . | . . . Hover . | . . . Flight . | . . . Utility 3 | 1 2 . Device 1 | . 1 . Storage 2 | 1 1 . Processor . | . . . Hackware . | . . . Protection . | . . . Artifact . | . . . Weapon 10 | 3 4 3 Energy Gun 2 | 1 1 . Energy Cannon 1 | . . 1 Ballistic Gun 3 | 2 1 . Ballistic Cannon 1 | . 1 . Launcher 2 | . 1 1 Special Weapon 1 | . . 1 Impact Weapon . | . . . Slashing Weapon . | . . . Piercing Weapon . | . . . Special Melee Weapon . | . . . Unidentified Prototypes . | . . . Parts Lost 4 | . 1 3 Power 1 | . . 1 Propulsion 1 | . . 1 Utility . | . . . Weapon 2 | . 1 1 Highest Loss Streak 3 | . 1 3 To Critical Strikes . | . . . Average Slot Usage (%) 94 | . 93 100 Engine 14 | . 14 14 Treads 28 | . 28 28 Device 10 | . 9 14 Storage 14 | . 14 14 Energy Gun 2 | . 2 . Ballistic Cannon 9 | . 8 14 Launcher 13 | . 13 12 Naked Turns . | . . . Heaviest Build 52 | 14 52 52 Greatest Support 40 | 40 40 40 Greatest Overweight (x) 1 | . 1 1 Average Overweight (x) . | . . 1 Largest Inventory Capacity 20 | 8 20 20 Average Capacity 18 | 7 19 20 Most Carried 13 | 2 13 12 Average Carried 10 | 1 10 11 Final Capacity 20 | 8 20 20 Final Carried 12 | 2 12 10 Class Distribution -------------------- 100% | Mutant Dominant Class ---------------- Mutant | -10/Materials Mutant | -10/Mines Resources | -11 -10 -10 ----------- Run | Yrd Mat Min Matter Collected 410 | 270 107 33 Remotely . | . . . Salvage Created 236 | . 231 5 Parts 24 | . 24 . Haulers Intercepted . | . . . Recyclers Shooed . | . . . Parts Field Recycled . | . . . Retrieved Matter . | . . . Parts Self-Destructed . | . . . Prevented . | . . . Kills | -11 -10 -10 ------- Run | Yrd Mat Min Combat Hostiles Destroyed 10 | . 6 4 Guns 1 | . 1 . Cannons 2 | . . 2 AOE 7 | . 5 2 Classes Destroyed 6 | . 4 2 Worker 1 | . 1 . Builder 3 | . 3 . Watcher 2 | . 2 . Grunt 6 | . 6 . Demolisher 1 | . . 1 Assembled 3 | . . 3 Best Kill Streak 9 | . 9 3 Combat Bots Only 3 | . 2 3 Max Kills in Single Turn 2 | . 2 1 Gunslinging . | . . . Exploded 1 | . 1 1 Melee . | . . . Uniques/NPCs Destroyed . | . . . Combat | -11 -10 -10 -------- Run | Yrd Mat Min Hostile Shots Fired 44 | . 25 19 Missed 12 | . 8 4 Damage Taken 825 | . 318 507 Core 255 | . 104 151 Absorbed by Shields . | . . . Core Remaining (%) 100 | 100 . . Volleys Fired 37 | . 28 9 Largest 2 | . 2 2 Hottest 100 | . 75 100 Shots Fired 53 | . 37 16 Gun 15 | . 15 . Cannon 20 | . 10 10 Launcher 17 | . 12 5 Special 1 | . . 1 Kinetic 21 | . 13 8 Thermal 3 | . . 3 Explosive 17 | . 12 5 Electromagnetic 12 | . 12 . Robot Hit Streak 6 | . 6 6 Robot Miss Streak 4 | . 4 2 Penetration Max . | . . . Secondary Targets . | . . . Shots Hit Robots 30 | . 22 8 Core Hits 25 | . 18 7 Critical Kills . | . . . Critical Parts Destroyed . | . . . Critical Strikes 1 | . 1 . Blast 1 | . 1 . Melee Attacks . | . . . Impact . | . . . Slashing . | . . . Piercing . | . . . Sneak Attacks . | . . . Combat Hostiles . | . . . Follow-up Attacks . | . . . Damage Inflicted 1101 | . 862 239 Guns 128 | . 128 . Cannons 194 | . 103 91 Explosions 779 | . 631 148 Melee . | . . . Ramming . | . . . Kinetic 194 | . 103 91 Thermal . | . . . Explosive 779 | . 631 148 Electromagnetic 128 | . 128 . Impact . | . . . Slashing . | . . . Piercing . | . . . Highest Corruption . | . . . Average Corruption . | . . . Corruption Purged . | . . . Corruption Blocked . | . . . Overload Shots . | . . . Overflow Damage 14 | . 14 . Projectiles . | . . . Explosions 14 | . 14 . Melee . | . . . Knockbacks 2 | . 1 1 Impact . | . . . Kinetic 2 | . 1 1 Secondary . | . . . Self-Inflicted Damage 136 | . 78 58 Shots 7 | . 5 2 Rammed . | . . . Targets Rammed . | . . . Kicked . | . . . Crushed . | . . . Highest Temperature 88 | . 88 33 Average Temperature 23 | . 29 6 Received Heat Transfer 153 | . 153 . Siege Activations . | . . . Robots Corrupted . | . . . Combat Hostiles . | . . . Parts Fried 2 | . 2 . Impact Corruptions . | . . . Robots Melted . | . . . Combat Hostiles . | . . . Parts Melted . | . . . Heat Transferred . | . . . Parts Sabotaged . | . . . Parts Stolen . | . . . Parts Stripped . | . . . Power Chain Reactions . | . . . Alert | -11 -10 -10 ------- Run | Yrd Mat Min Peak Influence 198 | . 198 61 Initial 5 | . . 5 Average 62 | . 73 35 Maximum Alert Level . | . . . Low Security (%) 100 | 100 100 100 Level 1 . | . . . Level 2 . | . . . Level 3 . | . . . Level 4 . | . . . Level 5 . | . . . High Security . | . . . Max Security . | . . . Squads Dispatched . | . . . Investigation . | . . . Extermination . | . . . Reinforcement . | . . . Assault . | . . . Garrison . | . . . Intercept . | . . . Searches Triggered . | . . . Construction Impeded . | . . . Haulers Reinforced . | . . . Active Scanning Responses . | . . . Cargo Convoy Interrupts . | . . . Stealth | -11 -10 -10 --------- Run | Yrd Mat Min Distress Signals 3 | . 3 . Communications Jammed . | . . . Distress Signals . | . . . Times Spotted 22 | . 17 5 Peak Tracking Total 4 | . 4 2 Tactical Retreats . | . . . Traps | -11 -10 -10 ------- Run | Yrd Mat Min Traps Triggered . | . . . Indirectly . | . . . Trap Hack Attempts . | . . . Triggered . | . . . Disarmed . | . . . Reprogrammed . | . . . Reused . | . . . Traps Extracted . | . . . Installed . | . . . Triggered . | . . . Machines | -11 -10 -10 ---------- Run | Yrd Mat Min Machines Disabled 2 | . 2 . Max in Single Turn 1 | . 1 . Machines Repaired . | . . . Machines Dismantled . | . . . Machines Sabotaged . | . . . Overloaded Fab Kills . | . . . Hacking | -11 -10 -10 --------- Run | Yrd Mat Min Machines Accessed 4 | . 4 . Terminals 3 | . 3 . Fabricators . | . . . Repair Stations . | . . . Recycling Units 1 | . 1 . Scanalyzers . | . . . Garrison Access . | . . . Total Hacks 9 | . 9 . Successful 4 | . 4 . Failed 5 | . 5 . Catastrophic 2 | . 2 . Database Lockouts . | . . . Manual . | . . . Terminals 8 | . 8 . Fabricators . | . . . Repair Stations . | . . . Recycling Units 1 | . 1 . Scanalyzers . | . . . Garrison Access . | . . . Terminal Hacks 3 | . 3 . Alert Level 1 | . 1 . Locate Traps 1 | . 1 . Security Status 1 | . 1 . Fabricator Hacks . | . . . Repair Station Hacks . | . . . Recycling Unit Hacks 1 | . 1 . Retrieve Components 1 | . 1 . Scanalyzer . | . . . Garrison Access Hacks . | . . . Unauthorized Hacks . | . . . Terminals . | . . . Fabricators . | . . . Repair Stations . | . . . Recycling Units . | . . . Scanalyzers . | . . . Garrison Access . | . . . Data Cores Recovered . | . . . Used . | . . . Hacking Detections 3 | . 3 . Full Trace Events 1 | . 1 . Feedback Events . | . . . Feedback Blocked . | . . . Robot Schematics Acquired . | . . . Robots Built . | . . . Authchips . | . . . Time . | . . . Total Robot Build Rating . | . . . Part Schematics Acquired . | . . . Parts Built . | . . . Authchips . | . . . Time . | . . . Total Part Build Rating . | . . . Parts Repaired . | . . . Time . | . . . Parts Recycled . | . . . Recycled Matter . | . . . Retrieved Matter . | . . . Retrieved Components 10 | . 10 . Parts Scanalyzed . | . . . Part Schematics Acquired . | . . . Parts Damaged . | . . . Bothacking | -11 -10 -10 ------------ Run | Yrd Mat Min Used RIF Installer . | . . . Robots Hacked . | . . . Non-combat . | . . . Combat . | . . . Robot Hacks Applied . | . . . Relay Couplers Released . | . . . Fabnet Peak Effective % . | . . . Robots Rewired . | . . . Allies Hacked . | . . . Hacks Repelled . | . . . Allies | -11 -10 -10 -------- Run | Yrd Mat Min Total Allies . | . . . Largest Group . | . . . Highest-Rated Group . | . . . Highest-Rated Ally . | . . . Total Orders . | . . . Ally Attacks . | . . . Total Damage . | . . . Kills . | . . . Allies Corrupted . | . . . Allies Melted . | . . . Intel | -11 -10 -10 ------- Run | Yrd Mat Min Robot Analysis Total . | . . . Derelict Logs Recovered . | . . . Drone Launches . | . . . Drone Recoveries . | . . . Exploration | -11 -10 -10 ------------- Run | Yrd Mat Min Turns Passed 1332 | 78 1023 231 Spaces Moved 519 | 46 389 84 Core 6 | 6 . . Treads 513 | 40 389 84 Legs . | . . . Wheels . | . . . Hover . | . . . Flight . | . . . Fastest Speed 50 | 50 160 240 Average Speed 226 | 145 233 240 Slowest Speed 240 | 160 240 240 Overloaded Moves . | . . . Propulsion Burnouts . | . . . Robots Hopped . | . . . Cave-ins Triggered . | . . . Exploration Rate (%) 27 | 4 59 18 Regions Visited 2 Branch Regions 1 Pre-discovered Areas . | . . . Known Exits Taken . | . . . Unknown Exits Taken 2 | 1 1 . Scrap Searched 1 | . . 1 Spaces Dug 1 | . . 1 Terrain Destroyed 100 | . 55 45 Melee . | . . . Projectile 1 | . . 1 AOE 99 | . 55 44 Terrain Rammed . | . . . Walls Destroyed . | . . . Machines Disabled . | . . . Actions | -11 -10 -10 --------- Run | Yrd Mat Min Total 620 | 54 469 97 Wait 20 | . 20 . Move 517 | 45 388 84 Hop . | . . . Pick Up 21 | 2 19 . Fast Attach 5 | 5 . . Attach 4 | 1 2 1 Detach . | . . . Swap 8 | 1 5 2 Drop 8 | . 7 1 Fire 37 | . 28 9 Melee . | . . . Ram . | . . . Kick . | . . . Crush . | . . . Escape Stasis . | . . . Rewire . | . . . Trap . | . . . Miscellaneous . | . . . Route ------- -11/Scrapyard -10/Materials (discovered 2 exits: [*Mat] / [*Min]) -10/Mines History --------- Turn | Location | Event 8 | -11/Scrapyard | Discovered new exit (range 14) 79 | -11/Scrapyard | Entered Materials 316 | -10/Materials | Build established: Mutant 472 | -10/Materials | Discovered new exit (range 12) 797 | -10/Materials | Discovered new exit (range 13) 1102 | -10/Materials | Entered Mines 1127 | -10/Mines | Assembled infested the area 1163 | -10/Mines | Core integrity fell below 50% 1327 | -10/Mines | Core integrity fell below 20% 1333 | -10/Mines | Destroyed by D-53 Grenadier with Mini Grenade Launcher Last Messages --------------- 01165_ Acquired 3 matter. 01168_ as-95334 destroyed. 01177_ The unstable cave ceiling collapses. 01183_ as-93783 destroyed. 01187_ The unstable cave ceiling collapses. 01218_ Searching scrap... 01218_ Found Seismic Detector. 01218_ Found Med. Storage Unit. 01218_ Found Med. Matter Pod. 01218_ Found 30 Matter. 01219_ Acquired 30 matter. 01299_ Dropped Targeting Computer. 01324_ The unstable cave ceiling collapses. 01324_ D-53 Grenadier knocked back. 01324_ Grenade Launcher destroyed. 01327_ The unstable cave ceiling collapses. 01330_ D-53 Grenadier destroyed. 01330_ Lgt. Treads destroyed. 01331_ The unstable cave ceiling collapses. 01333_ Ion Engine destroyed. Map ----- +----------------------------------------------------+ | | | | | | | | | | | | | | | | | | | | | | | | | | | ??????????????????????????????????????????????? | | ??????????????????????########????????????????? | | ?????????????????###### ##???????????????? | | ????????????????## #???????????????? | | ????????????????# #???????????????? | | ????????????????# ##?????? ???????? | | ????????????????## ##??? """?????? | | ?????????????????#### ## """ ????? | | ????????????####??## """ ????? | | ???????????## #### ### #???? | | ??????????## # ## ##???????????? | | ????####??# !; # ######????????????? | | ???## #### # @ ##????????????????? | | ???# ## ## #????????????????? | | ???# #### #????????????????? | | ???## """ #### #????????????????? | | ????# """ ##??# ## % #????????????????? | | ????# """ ##??## #### d #???????????????? | | ????# ##???# ##?? #???????????????? | | ????## ##???## #?? #???????????????? | | ?????## ##??# #??# #???????????????? | | ??????#### ##?# ##### ##???????????????? | | ?????????## ### ### ###????????????????? | | ??????????# #? #??????????????????? | | ??????????## #? #??????????????????? | | ???????????## ## # #? #??????????????????? | | ????????????# ######!!###? #??????????????????? | | ????????????# #????# ##???????????????????????? | | ????????????# #????#!#????????????????????????? | | ????????????# #????# #????????????????????????? | | ????????????# #????# ????????????????????????? | | ????????????# ????###????????????????????????? | | ????????????## ???????????????????????????????? | | ?????????????? ???????????????????????????????? | | ?????????????? ???????????????????????????????? | | ?????????????? ???????????????????????????????? | | ?????????????? ???????????????????????????????? | +----------------------------------------------------+ Best States ------------- Heat Dissipation 25 Energy Generation 10 Energy Capacity 250 Matter Stores 300 Matter Capacity 300 Sight Range 16 Terrain Scan Density 10 Evasion (%) 40 Recoil Reduction 2 Item Schematics ----------------- None Robot Schematics ------------------ None Fabricated ------------ Nothing Alien Tech Used ----------------- None Achievements -------------- None Challenges ------------ None Game ------ Seed MakeshiftSpikedMonowheel Manual? 0 Play Time 00:10:39 Cumulative 6.7 hours Start 2024.07.08 @ 20:15:32 End 2024.07.08 @ 20:24:28 Sessions 1 Manual Loads 0 Difficulty Rogue Special Mode None Game No. 18 Rogue 12 Adventurer 6 Explorer 0 Win Type - Total 0 Types 0/0/0/0/0/0/0/0/0 Lore% 7 Gallery% 12 Achievement% 12 Wizard Run 0 Options --------- Layout 1 ASCII 0 Keyboard 0 Movement Mouse Keybinds 0 Fullscreen 1 Font 32/SmallcapsGlow Map View 50x35 Zoom Use 0% Tactical HUD 1 Map Filters NONE Filters NONE Steam 1 RUN: db5f18cd-48f1-41dd-9a84-1bbd75cc1589